bitfinex-derivatives/quotes_BNBF0:USTF0_20250116
["timestamp","ask_amount","ask_price","bid_price","bid_amount"]
[1737044190746,1.0477579,711.76,710.18,1.24309597]
[1737044190944,1.0477579,711.76,710.19,1.24309597]
[1737044191140,1.0477579,711.76,710.2,1.24309597]
[1737044191341,1.0477579,711.76,710.21,1.24309597]
[1737044191546,1.0477579,711.76,710.22,1.24309597]
[1737044191746,1.0477579,711.76,710.14,0.2816346]
[1737044191747,1.0477579,711.62,710.23,1.24309597]
[1737044191940,1.0477579,711.62,710.24,1.50171704]
[1737044192147,1.0477579,711.62,710.25,1.50171704]
[1737044192345,1.0477579,711.62,710.26,1.50171704]
[1737044192542,1.0477579,711.62,710.27,1.50171704]
[1737044192848,1.0477579,711.52,710.28,1.50171704]
[1737044193040,1.0477579,711.52,710.29,1.50171704]
[1737044193247,1.0477579,711.52,710.3,1.50171704]
[1737044193450,1.0477579,711.52,710.31,1.50170555]
[1737044193649,1.0477579,711.52,710.32,1.50170555]
[1737044193951,1.46877792,711.61,710.14,0.2816346]
[1737044193952,1.0477579,711.49,710.33,1.50170555]
[1737044194246,1.0477579,711.49,710.34,1.24309597]
[1737044194447,1.0477579,711.49,710.35,1.24309597]
[1737044194646,1.0477579,711.49,710.36,1.24309597]
[1737044194842,1.0477579,711.49,710.14,0.2816346]
[1737044194843,1.0477579,711.34,710.37,1.24309597]
[1737044195149,1.0477579,711.34,710.38,1.24309597]
[1737044195448,1.0477579,711.34,710.39,1.24309597]
[1737044195649,1.0477579,711.34,710.4,1.24309597]
[1737044195847,1.0477579,711.34,710.41,1.24309597]
[1737044196049,1.0477579,711.34,710.14,0.2816346]
[1737044196050,1.0477579,711.28,710.42,1.24309597]
[1737044196249,1.0477579,711.28,710.43,1.24236154]
[1737044196453,1.0477579,711.28,710.44,1.24236154]
[1737044196747,1.0477579,711.28,710.45,1.24236154]
[1737044196946,1.0477579,711.28,710.46,1.24236154]
[1737044197150,1.0477579,711.26,710.47,0.47781247]
[1737044197352,1.0477579,711.26,710.48,0.47781247]
[1737044197647,1.0477579,711.26,710.49,0.47781247]
[1737044197851,1.0477579,711.26,710.5,0.47781247]
[1737044198049,1.0477579,711.34,710.51,0.47781247]
[1737044198250,1.0477579,711.34,710.52,0.47781247]
[1737044198552,1.0477579,711.34,710.14,0.2816346]
[1737044198553,1.0477579,711.34,710.53,0.47781247]
[1737044198745,0.28116345,711.33,710.14,0.2816346]
[1737044199051,1.32892135,711.33,710.15,1.24192452]
[1737044199252,1.32892135,711.33,710.16,1.24192452]
[1737044199453,1.32892135,711.33,710.17,1.24192452]
[1737044199652,1.32892135,711.33,710.18,1.24192452]
[1737044199846,1.32892135,711.33,710.19,1.24192452]
[1737044200052,1.32892135,711.33,710.2,1.24192452]
[1737044200355,1.32892135,711.33,710.21,1.24192452]
[1737044200547,1.32892135,711.33,710.22,1.24192452]
[1737044200752,1.32892135,711.33,710.23,1.24192452]
[1737044200952,1.32892135,711.33,710.24,1.24192452]
[1737044201154,1.32892135,711.33,710.25,1.24192452]
[1737044201349,1.0477579,711.3,710.26,1.24192452]
[1737044201555,1.0477579,711.3,710.27,1.24192452]
[1737044201756,1.0477579,711.3,710.28,1.24192452]
[1737044201956,1.0477579,711.3,710.29,1.24218063]
[1737044202256,1.0477579,711.32,710.3,1.24218063]
[1737044202455,1.0477579,711.32,710.31,1.24218063]
[1737044202650,1.0477579,711.32,710.32,1.24218063]
[1737044202855,1.0477579,711.32,710.33,1.24218063]
[1737044203060,1.0477579,711.32,710.34,1.24218063]
[1737044203365,1.0477579,711.32,710.35,1.24218063]
[1737044203565,1.0477579,711.32,710.36,1.24218063]
[1737044203767,1.0477579,711.32,710.37,1.24218063]
[1737044204063,1.0477579,711.32,710.38,1.24218063]
[1737044204266,1.0477579,711.26,710.39,1.24218063]
[1737044204462,1.0477579,711.26,710.4,1.24218063]
[1737044204661,1.0477579,711.26,710.41,1.24218063]
[1737044204861,1.0477579,711.26,710.42,1.24218063]
[1737044205064,1.0477579,711.22,710.43,1.24218063]
[1737044205262,1.0477579,711.22,710.44,1.24218063]
[1737044205464,1.0477579,711.22,710.45,1.24218063]
[1737044205659,1.0477579,711.22,710.46,1.24218063]
[1737044205865,1.0477579,711.22,710.47,1.24218063]
[1737044206069,0.28116345,711.33,710.14,0.2816346]
[1737044206070,0.28116345,711.33,710.48,1.24218063]
[1737044206366,0.28116345,711.33,710.49,1.24218063]
[1737044206562,0.28116345,711.33,710.5,1.24218063]
[1737044206767,0.28116345,711.33,710.51,1.24218063]
[1737044206969,0.28116345,711.33,710.52,1.24218063]
[1737044207267,0.28116345,711.33,710.53,1.24218063]
[1737044207466,0.28116345,711.33,710.54,1.24218063]
[1737044207767,0.28116345,711.33,710.55,1.24218063]
[1737044208068,0.28116345,711.33,710.56,1.24218063]
[1737044208267,0.28116345,711.33,710.57,1.24218063]
[1737044208465,0.28116345,711.33,710.58,1.24218063]
[1737044208668,0.28116345,711.33,710.59,1.24218063]
[1737044208867,0.28116345,711.33,710.6,1.24218063]
[1737044209163,0.28116345,711.33,710.61,1.24218063]
[1737044209369,0.28116345,711.33,710.62,1.24218063]
[1737044209669,0.28116345,711.33,710.63,1.24218063]
[1737044209870,0.28116345,711.33,710.64,1.24218063]
[1737044210170,0.28116345,711.33,710.65,1.24218063]
[1737044210370,1.0477579,711.63,710.66,1.24218063]
[1737044210569,1.0477579,711.63,710.67,1.24218063]
[1737044210768,1.0477579,711.63,710.68,1.24218063]
[1737044210969,1.0477579,711.63,710.69,1.24218063]
[1737044211169,1.0477579,711.72,710.7,1.24218063]
[1737044211371,1.0477579,711.72,710.14,0.2816346]
[1737044211372,1.0477579,711.72,710.71,1.24218063]
[1737044211572,0.28101333,711.71,710.72,1.24218063]
[1737044211871,0.28101333,711.71,710.73,0.47774289]
[1737044212168,0.28101333,711.71,710.14,0.2816346]
[1737044212169,1.0477579,711.68,710.74,0.47774289]
[1737044212372,1.0477579,711.68,710.14,0.2816346]
[1737044212373,1.0477579,711.68,710.75,0.47774289]
[1737044212572,1.0477579,711.68,710.14,0.2816346]
[1737044212769,1.0477579,711.68,710.15,1.2465721]
[1737044212970,1.0477579,711.68,710.16,1.2465721]
[1737044213172,1.0477579,711.68,710.17,1.2465721]
[1737044213367,1.0477579,711.68,710.18,1.2465721]
[1737044213567,1.0477579,711.6,710.19,1.2465721]
[1737044213772,1.0477579,711.6,710.2,1.2465721]
[1737044213968,1.0477579,711.6,710.21,1.2465721]
[1737044214169,1.0477579,711.6,710.22,1.2465721]
[1737044214369,1.0477579,711.6,710.23,1.2465721]
[1737044214673,1.0477579,711.45,710.24,1.2465721]
[1737044214869,1.0477579,711.45,710.25,1.2465721]
[1737044215074,1.0477579,711.45,710.26,1.50518806]
[1737044215368,1.0477579,711.45,710.27,1.2465721]
[1737044215673,1.0477579,711.45,710.28,1.2465721]
[1737044215874,1.0477579,711.45,710.29,1.2465721]
[1737044216079,0.28101333,711.71,710.3,1.2465721]
[1737044216080,1.0477579,711.36,710.3,1.2465721]
[1737044216269,1.0477579,711.36,710.31,1.2465721]
[1737044216474,0.72356793,711.7,710.32,1.2465721]
[1737044216670,0.72356793,711.7,710.33,1.2465721]
[1737044216869,0.72356793,711.7,710.34,1.2465721]
[1737044217074,0.72356793,711.7,710.35,1.2465721]
[1737044217279,0.72356793,711.7,710.36,1.2465721]
[1737044217478,0.72356793,711.7,710.37,1.2465721]
[1737044217779,1.05091157,711.64,710.38,1.2465721]
[1737044217978,0.28104492,711.63,710.39,1.2465721]
[1737044218169,0.28104492,711.63,710.14,0.2816346]
[1737044218170,0.28104492,711.63,710.4,1.2465721]
[1737044218374,0.28104492,711.63,710.41,1.2465721]
[1737044218676,1.05091157,711.54,710.42,1.2465721]
[1737044218877,1.05091157,711.54,710.43,1.2465721]
[1737044219078,1.05091157,711.54,710.44,1.2465721]
[1737044219275,1.05091157,711.54,710.45,1.2465721]
[1737044219474,1.05091157,711.54,710.46,1.2465721]
[1737044219680,1.05091157,711.54,710.47,1.2465721]
[1737044219978,0.28104492,711.63,710.48,1.2465721]
[1737044219979,1.05091157,711.55,710.48,1.2465721]
[1737044220178,1.05091157,711.55,710.49,1.2465721]
[1737044220378,1.05091157,711.55,710.14,0.2816346]
[1737044220379,1.05091157,711.55,710.5,1.2465721]
[1737044220574,1.05091157,711.55,710.51,1.2520164]
[1737044220879,1.05091157,711.55,710.52,1.2520164]
[1737044221075,1.05091157,711.57,710.53,1.2520164]
[1737044221273,1.05091157,711.57,710.54,1.2520164]
[1737044221472,0.28107257,711.56,710.55,1.2520164]
[1737044221674,0.28107257,711.56,710.56,1.2520164]
[1737044221879,0.28107257,711.56,710.57,1.2520164]
[1737044222081,0.28107257,711.56,710.58,1.2520164]
[1737044222382,0.28107257,711.56,710.59,1.2520164]
[1737044222582,0.28107257,711.56,710.6,1.2520164]
[1737044222881,0.28107257,711.56,710.61,1.2520164]
[1737044223180,0.28107257,711.56,710.14,0.2816346]
[1737044223181,0.28107257,711.56,710.62,1.2520164]
[1737044223381,0.28107257,711.56,710.63,1.2520164]
[1737044223581,0.28107257,711.56,710.64,1.2520164]
[1737044223787,0.28107257,711.56,710.65,1.2520164]
[1737044224083,0.28107257,711.56,710.66,1.2520164]
[1737044224281,0.28107257,711.56,710.67,1.2520164]
[1737044224580,0.28107257,711.56,710.14,0.2816346]
[1737044224581,0.28107257,711.56,710.68,1.2520164]
[1737044224781,0.28107257,711.56,710.14,0.2816346]
[1737044224782,1.33198414,711.56,710.69,1.2520164]
[1737044224974,1.33198414,711.56,710.7,1.2520164]
[1737044225176,1.33198414,711.56,710.71,1.2520164]
[1737044225375,1.33198414,711.56,710.72,1.2520164]
[1737044225573,1.33198414,711.56,710.73,1.2520164]
[1737044225775,1.33198414,711.56,710.74,1.2520164]
[1737044225977,1.05091157,711.42,710.75,1.25123574]
[1737044226180,1.05091157,711.42,710.76,1.25123574]
[1737044226381,1.05091157,711.42,710.77,0.48152573]
[1737044226682,1.05091157,711.42,710.78,0.48152573]
[1737044226882,1.05091157,711.42,710.79,0.48152573]
[1737044227082,1.05091157,711.42,710.14,0.2816346]
[1737044227083,1.05091157,711.43,710.8,0.48152573]
[1737044227286,1.05091157,711.43,710.81,0.48152573]
[1737044227477,1.05091157,711.43,710.82,0.48102999]
[1737044227677,1.05091157,711.43,710.14,0.2816346]
[1737044227984,1.05091157,711.43,710.15,1.50929487]
[1737044228184,1.05091157,711.43,710.16,1.50929487]
[1737044228384,1.05091157,711.43,710.17,1.25067086]
[1737044228585,1.05091157,711.43,710.18,1.25067086]
[1737044228785,1.05091157,711.43,710.19,1.25067086]
[1737044228982,1.05091157,711.43,710.2,1.25067086]
[1737044229184,1.05091157,711.43,710.21,1.25067086]
[1737044229484,1.05091157,711.43,710.22,1.25067086]
[1737044229686,1.05091157,711.42,710.23,1.25067086]
[1737044229888,1.05091157,711.42,710.24,1.25067086]
[1737044230080,1.05091157,711.42,710.25,1.25067086]
[1737044230285,1.05091157,711.42,710.26,1.25067086]
[1737044230485,1.05091157,711.42,710.14,0.2816346]
[1737044230486,1.05091157,711.42,710.27,1.25067086]
[1737044230779,1.05091157,711.42,710.28,1.25067086]
[1737044230985,1.05091157,711.28,710.29,1.25067086]
[1737044231184,1.05091157,711.28,710.3,1.25181122]
[1737044231387,1.05091157,711.28,710.31,1.25181122]
[1737044231587,1.05091157,711.28,710.14,0.2816346]
[1737044232089,1.05091157,711.31,710.14,0.2816346]
[1737044232587,1.05091157,711.31,710.15,1.25160249]
[1737044232789,1.05091157,711.31,710.16,1.25160249]
[1737044232988,1.05091157,711.31,710.17,1.25160249]
[1737044233190,1.05091157,711.42,710.18,1.25160249]
[1737044233388,1.05091157,711.42,710.19,1.25160249]
[1737044233690,1.05091157,711.42,710.2,1.25160249]
[1737044233888,1.05091157,711.42,710.21,1.25160249]
[1737044234090,1.05091157,711.4,710.22,1.25160249]
[1737044234286,1.05091157,711.4,710.23,1.25160249]
[1737044234486,1.05091157,711.4,710.24,1.25160249]
[1737044234687,1.05091157,711.4,710.25,1.25160249]
[1737044234884,1.46905693,711.39,710.26,1.25160249]
[1737044235088,1.46905693,711.39,710.14,0.2816346]
[1737044235089,1.46905693,711.39,710.27,1.25160249]
[1737044235282,1.46905693,711.39,710.28,1.25160249]
[1737044235483,1.46905693,711.39,710.29,1.25160249]
[1737044235686,0.28114369,711.38,710.3,1.25160249]
[1737044235987,0.28114369,711.38,710.31,1.25160249]
[1737044236188,1.33205526,711.38,710.32,1.25160249]
[1737044236386,1.33205526,711.38,710.33,1.25160249]
[1737044236588,1.33205526,711.38,710.34,1.25160249]
[1737044236785,1.33205526,711.38,710.14,0.2816346]
[1737044236987,1.33205526,711.38,710.15,1.51053504]
[1737044237188,1.33205526,711.38,710.16,1.51053504]
[1737044237393,1.05091157,711.24,710.17,1.51053598]
[1737044237589,1.05091157,711.24,710.18,1.25187254]
[1737044237790,1.05091157,711.24,710.19,1.25187254]
[1737044237986,1.05091157,711.24,710.2,1.25187254]
[1737044238189,1.05091157,711.24,710.21,1.25187254]
[1737044238386,1.05091157,711.24,710.22,1.25187254]
[1737044238588,1.05091157,711.23,710.23,1.25187254]
[1737044238893,1.05091157,711.23,710.24,1.25187254]
[1737044239194,1.05091157,711.23,710.25,1.25187254]
[1737044239493,1.05091157,711.29,710.26,1.25187254]
[1737044239692,1.05091157,711.29,710.27,1.25187254]
[1737044239892,1.05091157,711.29,710.28,1.25187254]
[1737044240089,1.05091157,711.29,710.29,1.25187254]
[1737044240393,1.05091157,711.29,710.3,1.25187254]
[1737044240589,1.05091157,711.29,710.31,1.25217609]
[1737044240791,1.05091157,711.37,710.32,1.25217609]
[1737044240987,1.05091157,711.37,710.33,1.25217609]
[1737044241185,1.05091157,711.37,710.34,1.25217609]
[1737044241391,1.05091157,711.37,710.35,1.25217609]
[1737044241591,1.05091157,711.37,710.36,1.25217609]
[1737044241787,1.05091157,711.37,710.37,1.25217609]
[1737044242090,1.05091157,711.37,710.14,0.2816346]
[1737044242091,0.28115159,711.36,710.38,1.25217609]
[1737044242394,0.28115159,711.36,710.39,1.25217609]
[1737044242593,0.28115159,711.36,710.4,1.25217609]
[1737044242793,0.28115159,711.36,710.41,1.25217609]
[1737044242992,1.05091157,711.16,710.42,1.25217609]
[1737044243195,1.05091157,711.16,710.43,1.25217609]
[1737044243390,1.05091157,711.16,710.44,1.25217609]
[1737044243592,1.05091157,711.16,710.45,1.25217609]
[1737044243791,1.05091157,711.16,710.46,1.25217609]
[1737044243989,1.05091157,711.16,709.4,1.24806577]
[1737044243990,1.05091157,711.14,710.47,1.25217609]
[1737044244190,1.05091157,711.14,710.48,1.25217609]
[1737044244393,1.05091157,711.14,710.49,1.25217609]
[1737044244589,1.05091157,711.14,710.5,1.25217609]
[1737044244795,1.05091157,711.14,710.51,0.48158706]
[1737044245093,1.05091157,711.14,710.52,0.48158706]
[1737044245288,1.05091157,711.14,710.53,0.48158706]
[1737044245489,1.05091157,711.14,710.54,0.48158706]
[1737044245695,1.05091157,711.14,709.8,1.04005481]
[1737044245897,1.05091157,711.14,709.81,1.5112983]
[1737044246196,1.05091157,711.12,709.82,0.25871618]
[1737044246390,1.05091157,711.12,709.74,1.04005481]
[1737044246595,1.05091157,711.12,709.75,0.25872675]
[1737044247298,1.05091157,711.22,709.76,1.25252766]
[1737044247501,1.05091157,711.22,709.77,1.25252766]
[1737044247694,1.05091157,711.22,709.78,1.25252766]
[1737044247890,1.05091157,711.22,709.58,1.04005481]
[1737044247891,1.05091157,711.22,709.79,1.51125914]
[1737044248195,1.05091157,711.22,709.8,1.25252766]
[1737044248393,1.05091157,711.23,709.81,1.25252766]
[1737044248597,1.05091157,711.23,709.82,1.25252766]
[1737044248796,1.05091157,711.23,709.83,1.25252766]
[1737044248997,1.05091157,711.23,709.84,1.25252766]
[1737044249198,1.05091157,711.23,709.85,1.25252766]
[1737044249396,1.05091157,711.23,709.86,1.25252766]
[1737044249597,1.05091157,711.23,709.87,1.25252766]
[1737044249794,1.05091157,711.23,708.96,1.24806577]
[1737044249795,1.05091157,711.12,709.88,1.25252766]
[1737044250001,1.05091157,711.12,709.89,1.25252766]
[1737044250200,1.05091157,711.12,709.9,1.25232064]
[1737044250401,1.05091157,711.12,709.91,1.25232064]
[1737044250609,1.05091157,711.12,709.92,1.25232064]
[1737044250800,1.05091157,711.13,709.93,1.25232064]
[1737044251000,1.05091157,711.13,709.94,1.25232064]
[1737044251195,1.05091157,711.13,709.95,1.25232064]
[1737044251394,1.05091157,711.13,709.46,1.04005481]
[1737044251395,1.05091157,711.13,709.96,1.25232064]
[1737044251599,1.05091157,711.19,709.97,1.25232064]
[1737044251900,1.05091157,711.19,709.98,1.25232064]
[1737044252102,1.05091157,711.19,709.99,1.25232064]
[1737044252300,1.05091157,711.19,710.0,1.25232064]
[1737044252497,1.05091157,711.19,710.01,1.25232064]
[1737044252701,1.05091157,711.15,710.02,1.25232064]
[1737044253001,1.05091157,711.15,710.03,1.25232064]
[1737044253201,1.05091157,711.15,710.04,1.25232064]
[1737044253405,1.05091157,711.15,710.05,1.25232064]
[1737044253602,1.05091157,711.15,710.06,1.25232064]
[1737044253803,1.05091157,711.15,710.07,1.25232064]
[1737044254006,1.05091157,711.09,710.08,0.48164265]
[1737044254198,1.05091157,711.09,710.09,0.48164265]
[1737044254403,1.05091157,711.09,710.1,0.48164265]
[1737044254604,1.05091157,711.09,710.11,0.48164265]
[1737044254799,1.05091157,711.09,710.12,0.48164265]
[1737044255001,1.05091157,711.09,710.13,0.48128213]
[1737044255197,1.05091157,711.09,709.3,1.04005481]
[1737044255502,1.05091157,711.02,709.31,1.25074758]
[1737044255703,1.05091157,711.02,709.32,1.79153423]
[1737044255999,1.05091157,711.02,709.33,1.50957831]
[1737044256203,1.05091157,711.02,709.34,1.50957831]
[1737044256402,1.05091157,711.02,709.35,1.50957831]
[1737044256603,1.05091157,711.02,709.32,0.28196018]
[1737044256604,1.05091157,711.06,709.36,1.50957831]
[1737044256801,1.05091157,711.06,709.37,1.50957831]
[1737044256998,1.05091157,711.06,709.38,1.50957831]
[1737044257196,1.05091157,711.06,709.39,1.50957831]
[1737044257402,1.05091157,711.06,709.4,1.50957831]
[1737044257603,1.05091157,711.06,709.41,1.50957831]
[1737044257805,1.47021546,711.08,709.42,1.50957831]
[1737044258106,1.47021546,711.08,709.43,1.50957831]
[1737044258299,1.47021546,711.08,709.44,1.50957831]
[1737044258504,1.47021546,711.08,709.45,1.50957831]
[1737044258805,1.47021546,711.08,709.46,1.50956777]
[1737044259005,1.47021546,711.08,709.32,0.28196018]
[1737044259006,1.47021546,711.08,709.47,1.50956777]
[1737044259306,1.47021546,711.08,709.48,1.50956777]
[1737044259500,1.47021546,711.08,709.49,1.50956777]
[1737044259709,1.47021546,711.08,709.5,1.50956777]
[1737044259999,1.47021546,711.08,709.51,1.50956777]
[1737044260208,1.47021546,711.08,709.52,1.50956777]
[1737044260405,1.47021546,711.08,709.53,1.50956777]
[1737044260606,1.47021546,711.08,709.54,1.50956777]
[1737044260808,1.47021546,711.08,709.55,1.50956777]
[1737044261008,1.47021546,711.08,709.56,1.50956777]
[1737044261307,1.47021546,711.08,709.57,1.25074758]
[1737044261610,1.47021546,711.08,709.58,1.50951994]
[1737044261908,1.47021546,711.08,709.59,1.50951994]
[1737044262100,1.47021546,711.08,709.6,1.50949207]
[1737044262304,1.47021546,711.08,709.61,1.25074758]
[1737044262501,1.47021546,711.08,709.62,1.50949207]
[1737044262704,1.47021546,711.08,709.63,1.50949207]
[1737044262906,1.47021546,711.08,709.64,1.50949207]
[1737044263107,1.47021546,711.08,709.65,1.50949207]
[1737044263307,1.47021546,711.08,709.32,0.28196018]
[1737044263308,1.47021546,711.08,709.66,1.50949207]
[1737044263506,1.47021546,711.08,709.46,1.04005481]
[1737044263507,1.47021546,711.08,709.67,1.50949207]
[1737044263707,1.47021546,711.08,709.68,1.50949207]
[1737044263908,1.47021546,711.08,709.69,1.50949207]
[1737044264109,1.47021546,711.08,709.7,1.50949207]
[1737044264407,1.47021546,711.08,709.71,1.50948999]
[1737044264606,1.47021546,711.08,709.72,1.50948999]
[1737044264803,1.47021546,711.08,709.73,1.50948999]
[1737044265003,1.47021546,711.08,709.74,1.25074758]
[1737044265203,1.47021546,711.08,709.75,1.25074758]
[1737044265410,1.47021546,711.08,709.32,0.28196018]
[1737044265411,1.47021546,711.08,709.76,1.25074758]
[1737044265602,1.47021546,711.08,709.77,1.25074758]
[1737044265803,1.47021546,711.08,709.78,1.25074758]
[1737044266008,1.47021546,711.08,709.79,1.25074758]
[1737044266309,1.47021546,711.08,709.8,1.25074758]
[1737044266511,1.47021546,711.08,709.81,1.25074758]
[1737044266815,1.47021546,711.08,709.82,1.24586611]
[1737044267011,1.47021546,711.08,709.83,1.24586611]
[1737044267210,1.47021546,711.08,709.84,1.24586611]
[1737044267406,1.47021546,711.08,709.85,1.24586611]
[1737044267605,1.47021546,711.08,709.86,1.24586611]
[1737044267810,1.47021546,711.08,709.87,1.24586611]
[1737044268005,1.47021546,711.08,709.88,1.24586611]
[1737044268211,1.47021546,711.08,709.89,1.24586611]
[1737044268409,1.47021546,711.08,709.9,1.24586611]
[1737044268605,1.47021546,711.08,709.91,1.24586611]
[1737044268806,1.47021546,711.08,709.92,1.24586611]
[1737044269016,1.47021546,711.08,709.93,1.24586611]
[1737044269314,1.47021546,711.08,709.94,1.24586611]
[1737044269514,1.47021546,711.08,709.95,1.24586611]
[1737044269715,1.47021546,711.08,709.96,1.24586611]
[1737044269916,1.47021546,711.08,709.97,1.24586611]
[1737044270116,1.47021546,711.08,709.98,1.24586611]
[1737044270315,1.47021546,711.08,709.32,0.28196018]
[1737044270316,1.05091157,711.05,709.99,1.24586611]
[1737044270508,1.05091157,711.05,710.0,1.24586611]
[1737044270710,1.05091157,711.05,709.32,0.28196018]
[1737044270711,1.05091157,711.05,710.01,1.24586611]
[1737044270914,1.05091157,711.05,710.02,1.24586611]
[1737044271210,1.05091157,711.05,710.03,1.24586611]
[1737044271411,1.05091157,711.05,710.04,1.24586611]
[1737044271711,1.05091157,710.97,710.05,1.24586611]
[1737044271916,1.05091157,710.97,710.06,0.47916017]
[1737044272211,1.05091157,710.97,710.07,0.47916017]
[1737044272416,1.05091157,710.97,710.08,0.47924087]
[1737044272612,1.05091157,710.97,709.32,0.28196018]
[1737044272613,1.05091157,710.94,710.09,0.47924087]
[1737044272811,1.05091157,710.94,710.1,0.47924087]
[1737044273013,1.05091157,710.94,710.11,0.47924087]
[1737044273209,1.05091157,710.94,710.12,0.47924087]
[1737044273413,1.05091157,710.94,710.13,0.47924087]
[1737044273616,1.05091157,710.94,710.14,0.47924087]
[1737044273810,1.05091157,710.94,710.15,0.47914675]
[1737044274016,1.05091157,710.93,709.32,1.32201499]
[1737044274314,1.05091157,710.93,709.33,1.50469073]
[1737044274517,1.05091157,710.93,709.34,1.50469073]
[1737044274720,1.05091157,710.93,709.35,1.50469073]
[1737044274920,1.05091157,710.97,709.36,1.50469073]
[1737044275218,1.05091157,710.97,709.37,1.50469037]
[1737044275519,1.05091157,710.97,709.38,1.50469037]
[1737044275719,1.05091157,710.97,709.39,1.50469037]
[1737044275918,1.05091157,710.97,709.4,1.50469037]
[1737044276119,1.05091157,711.0,709.41,1.50469037]
[1737044276313,1.05091157,711.0,709.42,1.50469037]
[1737044276519,1.05091157,711.0,709.43,1.50469037]
[1737044276719,1.05091157,711.0,709.44,1.50469037]
[1737044276917,1.05091157,711.0,709.45,1.50469037]
[1737044277220,1.05091157,711.0,709.46,1.50469037]
[1737044277420,1.05091157,711.0,709.47,1.50469037]
[1737044277620,1.05091157,711.0,709.32,1.32201499]
[1737044277621,1.05091157,711.03,709.48,1.50469037]
[1737044277814,1.05091157,711.03,709.49,1.24586733]
[1737044278016,1.05091157,711.03,709.5,1.50469037]
[1737044278219,1.05091157,711.03,709.51,0.85620065]
[1737044278416,1.05091157,711.03,709.52,2.10123859]
[1737044278621,1.05091157,711.03,709.53,2.10123859]
[1737044278820,1.05091157,711.08,709.56,1.04005481]
[1737044279020,1.05091157,711.08,709.57,1.50386098]
[1737044279221,1.05091157,711.08,709.58,1.50386098]
[1737044279421,1.05091157,711.08,709.59,1.50386098]
[1737044279623,1.05091157,711.08,709.6,1.50386098]
[1737044279822,1.05091157,711.08,709.67,1.04005481]
[1737044280023,1.05091157,711.03,709.68,1.50386098]
[1737044280218,1.05091157,711.03,709.69,1.50386098]
[1737044280422,1.05091157,711.03,709.67,1.04005481]
[1737044280423,1.05091157,711.03,709.7,1.50386098]
[1737044280622,1.05091157,711.03,709.67,1.04005481]
[1737044280623,1.05091157,711.03,709.71,1.50378396]
[1737044280829,1.05091157,711.03,709.72,1.50378396]
[1737044281025,1.05091157,711.34,709.32,0.28196018]
[1737044281026,1.05091157,711.0,709.73,1.50378396]
[1737044281225,1.05091157,711.0,709.74,1.50378396]
[1737044281424,1.05091157,711.0,709.75,1.50378396]
[1737044281625,1.05091157,711.0,709.76,1.50378396]
[1737044281817,1.05091157,711.0,709.77,1.50378374]
[1737044282022,1.05091157,711.0,709.78,1.50378374]
[1737044282221,1.05091157,710.99,709.79,1.50378374]
[1737044282419,1.05091157,710.99,709.8,1.50378374]
[1737044282620,1.05091157,710.99,709.81,1.76253104]
[1737044282824,1.05091157,710.99,709.82,1.50378449]
[1737044283127,1.05091157,710.99,709.83,1.50378449]
[1737044283325,1.46974976,711.1,709.81,0.25874655]
[1737044283326,1.05091157,710.94,709.84,1.50378449]
[1737044283521,1.05091157,710.94,709.81,0.25874655]
[1737044283522,1.05091157,710.94,709.85,1.50378449]
[1737044283726,1.05091157,710.94,709.86,1.24503794]
[1737044283927,1.05091157,710.94,709.87,1.24503794]
[1737044284128,1.05091157,710.94,709.88,1.24503794]
[1737044284323,1.05091157,710.96,709.89,1.24503794]
[1737044284624,1.05091157,710.96,709.9,1.24503794]
[1737044284830,1.05091157,710.96,709.81,0.25874655]
[1737044284831,1.05091157,710.96,709.91,1.24503794]
[1737044285026,1.05091157,710.96,709.92,1.24503794]
[1737044285227,1.05091157,710.96,709.93,1.24503794]
[1737044285428,1.05091157,711.08,709.94,1.24503794]
[1737044285728,1.05091157,711.08,709.95,1.24503794]
[1737044285921,1.05091157,711.08,709.96,1.24503794]
[1737044286122,1.05091157,711.08,709.97,1.24503794]
[1737044286323,1.05091157,711.08,709.81,0.25874655]
[1737044286324,1.05091157,711.08,709.98,1.24503794]
[1737044286626,1.05091157,711.12,709.99,1.24503794]
[1737044286827,1.05091157,711.12,710.0,1.24503794]
[1737044287023,1.05091157,711.12,710.01,1.24503794]
[1737044287227,1.05091157,711.12,710.02,1.24503794]
[1737044287423,0.28125043,711.11,710.03,1.24503794]
[1737044287620,0.28125043,711.11,710.04,1.24503794]
[1737044287829,0.28125043,711.11,710.05,1.24503794]
[1737044288028,0.28125043,711.11,710.06,1.24503794]
[1737044288229,0.28125043,711.11,710.07,1.24503794]
[1737044288533,0.28125043,711.11,710.08,1.24795334]
[1737044288828,0.28125043,711.11,710.09,1.24795334]
[1737044289020,0.28125043,711.11,710.1,1.24795334]
[1737044289220,0.28125043,711.11,710.11,1.24795334]
[1737044289421,0.28125043,711.11,710.12,1.24795334]
[1737044289621,0.28125043,711.11,710.13,1.24795334]
[1737044289825,0.28125043,711.11,710.14,1.24795334]
[1737044290028,0.28125043,711.11,710.15,1.24795334]
[1737044290223,0.28125043,711.11,710.16,1.24795334]
[1737044290426,0.28125043,711.11,710.17,1.24795334]
[1737044290627,0.28125043,711.11,710.18,1.24795334]
[1737044290928,0.28125043,711.11,710.19,1.24795334]
[1737044291129,0.28125043,711.11,710.2,1.24795334]
[1737044291332,0.28125043,711.11,710.21,1.24795334]
[1737044291526,0.28125043,711.11,710.22,1.24795334]